bitfinex/quotes_BTCUSD_20240929
["timestamp","ask_amount","ask_price","bid_price","bid_amount"]
[1727588392918,0.44246051,65739.0,65738.0,0.05327858]
[1727588393176,0.29034451,65739.0,65738.0,0.05327858]
[1727588393415,0.29036849,65739.0,65738.0,0.05327858]
[1727588395920,0.44248449,65739.0,65738.0,0.05327858]
[1727588397285,0.44248449,65739.0,65738.0,0.001827]
[1727588398195,0.44248449,65739.0,65738.0,0.05324986]
[1727588398395,0.53069735,65739.0,65738.0,0.001827]
[1727588398701,0.53069735,65739.0,65738.0,0.05324986]
[1727588399156,0.44248449,65739.0,65738.0,0.05324986]
[1727588399386,0.44248449,65739.0,65738.0,0.001827]
[1727588401662,0.442487,65739.0,65738.0,0.001827]
[1727588402802,0.57891336,65739.0,65738.0,0.001827]
[1727588407695,0.442487,65739.0,65738.0,0.001827]
[1727588411582,0.57898037,65739.0,65738.0,0.001827]
[1727588412038,0.442487,65739.0,65738.0,0.001827]
[1727588412737,0.57897686,65739.0,65738.0,0.001827]
[1727588413178,0.442487,65739.0,65738.0,0.001827]
[1727588413403,0.58474733,65739.0,65738.0,0.001827]
[1727588416140,0.58492232,65739.0,65738.0,0.001827]
[1727588416360,0.44266199,65739.0,65738.0,0.001827]
[1727588417808,0.42701277,65739.0,65738.0,0.330046]
[1727588418029,0.19054599,65739.0,65738.0,0.177927]
[1727588418279,0.19054599,65739.0,65738.0,0.22934717]
[1727588418517,0.19054599,65739.0,65738.0,0.38146617]
[1727588418961,0.1482401,65739.0,65738.0,0.38146617]
[1727588419173,0.40426914,65739.0,65738.0,0.38146617]
[1727588420519,0.29054599,65739.0,65738.0,0.38146617]
[1727588424008,0.28149053,65739.0,65738.0,0.38146617]
[1727588424454,0.28149053,65739.0,65738.0,0.37646617]
[1727588425358,0.28198388,65739.0,65738.0,0.37646617]
[1727588427167,0.28012093,65739.0,65738.0,0.59060441]
[1727588427397,0.07811661,65739.0,65738.0,0.59060441]
[1727588427607,0.032654,65739.0,65738.0,0.59060441]
[1727588427836,0.03451695,65739.0,65738.0,0.49210789]
[1727588428053,0.032654,65739.0,65738.0,0.49210789]
[1727588428298,0.030654,65739.0,65738.0,0.49210789]
[1727588428533,0.03251695,65739.0,65738.0,0.49210789]
[1727588428756,0.030654,65739.0,65738.0,0.49310789]
[1727588428973,0.030654,65739.0,65738.0,0.60326858]
[1727588429245,0.024654,65739.0,65738.0,0.60326858]
[1727588429685,0.030654,65739.0,65738.0,0.60326858]
[1727588429910,0.030654,65739.0,65738.0,0.60226858]
[1727588430136,0.024654,65739.0,65738.0,0.60226858]
[1727588430391,0.024654,65739.0,65738.0,0.61026858]
[1727588430606,0.02651695,65739.0,65738.0,0.61026858]
[1727588430823,0.02651695,65739.0,65738.0,0.50010789]
[1727588431051,0.025654,65739.0,65738.0,0.50910789]
[1727588431726,0.02751695,65739.0,65738.0,0.50910789]
[1727588432655,0.02751695,65739.0,65738.0,0.50993489]
[1727588434905,0.025654,65739.0,65738.0,0.50993489]
[1727588435118,0.02751695,65739.0,65738.0,0.50993489]
[1727588435540,0.025654,65739.0,65738.0,0.50993489]
[1727588435967,0.02751695,65739.0,65738.0,0.50993489]
[1727588437790,0.025654,65739.0,65738.0,0.50993489]
[1727588438053,0.02751695,65739.0,65738.0,0.50993489]
[1727588446318,0.025654,65739.0,65738.0,0.50993489]
[1727588446530,0.02751695,65739.0,65738.0,0.50993489]
[1727588453732,0.02751695,65739.0,65738.0,0.39429317]
[1727588454808,0.02751695,65739.0,65738.0,0.50993489]
[1727588461840,0.002654,65739.0,65738.0,0.50993489]
[1727588463512,0.002654,65739.0,65738.0,0.50193489]
[1727588464657,0.002654,65739.0,65738.0,0.51393489]
[1727588465828,0.001654,65739.0,65738.0,0.50493489]
[1727588466068,0.001654,65739.0,65738.0,0.51693489]
[1727588466512,0.001654,65739.0,65738.0,0.50493489]
[1727588466696,0.001654,65739.0,65738.0,0.61767828]
[1727588466940,0.001654,65739.0,65738.0,0.63167828]
[1727588467159,0.001654,65739.0,65738.0,0.61967828]
[1727588467371,0.001654,65739.0,65738.0,0.63367828]
[1727588470860,0.001654,65739.0,65738.0,0.51803656]
[1727588471093,0.001654,65739.0,65738.0,0.63367828]
[1727588475366,0.001654,65739.0,65738.0,0.52093489]
[1727588479965,0.001654,65739.0,65738.0,0.34800789]
[1727588502002,0.001654,65739.0,65738.0,0.32270789]
[1727588502234,0.001654,65739.0,65738.0,0.35150058]
[1727588505772,0.001654,65739.0,65738.0,0.23585886]
[1727588505927,0.001654,65739.0,65738.0,0.35150058]
[1727588509257,0.001654,65739.0,65738.0,0.43320058]
[1727588512414,0.001654,65739.0,65738.0,0.42931021]
[1727588519590,0.001654,65739.0,65738.0,0.34761021]
[1727588529321,0.001654,65739.0,65738.0,0.23196849]
[1727588529540,0.024654,65739.0,65738.0,0.23196849]
[1727588529757,0.07015136,65739.0,65738.0,0.23196849]
[1727588529957,0.09290005,65739.0,65738.0,0.23196849]
[1727588530205,0.07015934,65739.0,65738.0,0.21796849]
[1727588530842,0.07015934,65739.0,65738.0,0.20396849]
[1727588531323,0.07015934,65739.0,65738.0,0.21396849]
[1727588531539,0.07015934,65739.0,65738.0,0.21996849]
[1727588531761,0.07015934,65739.0,65738.0,0.20996849]
[1727588532210,0.07015934,65739.0,65738.0,0.21596849]
[1727588533315,0.024654,65739.0,65738.0,0.21596849]
[1727588533767,0.024654,65739.0,65738.0,0.20996849]
[1727588533768,0.07015934,65739.0,65738.0,0.20996849]
[1727588534240,0.024654,65739.0,65738.0,0.20996849]
[1727588534467,0.024654,65739.0,65738.0,0.20896849]
[1727588534688,0.024654,65739.0,65738.0,0.20396849]
[1727588534915,0.024654,65739.0,65738.0,0.21196849]
[1727588535169,0.35707,65739.0,65738.0,0.06684949]
[1727588535407,0.51577934,65739.0,65738.0,0.06684949]
[1727588535638,0.51577934,65739.0,65738.0,0.015827]
[1727588535884,0.65225289,65739.0,65738.0,0.015827]
[1727588536345,0.51577934,65739.0,65738.0,0.015827]
[1727588536815,0.64920121,65739.0,65738.0,0.007827]
[1727588537503,0.64920121,65739.0,65738.0,0.000827]
[1727588537743,0.65120121,65739.0,65738.0,0.000827]
[1727588538216,0.64920121,65739.0,65738.0,0.000827]
[1727588538453,0.65120121,65739.0,65738.0,0.000827]
[1727588538692,0.65120121,65739.0,65738.0,0.004827]
[1727588539414,0.65120121,65739.0,65738.0,0.000827]
[1727588539415,0.64920121,65739.0,65738.0,0.000827]
[1727588539848,0.65420121,65739.0,65738.0,0.000827]
[1727588541047,0.64920121,65739.0,65738.0,0.000827]
[1727588541279,0.76267953,65739.0,65738.0,0.000827]
[1727588542241,0.63425766,65739.0,65738.0,0.000827]
[1727588542475,0.63625766,65739.0,65738.0,0.000827]
[1727588542964,0.60654762,65739.0,65738.0,0.000827]
[1727588543208,0.61054762,65739.0,65738.0,0.000827]
[1727588543423,0.61354762,65739.0,65738.0,0.000827]
[1727588543868,0.61054762,65739.0,65738.0,0.000827]
[1727588545260,0.66459081,65739.0,65738.0,0.000827]
[1727588545512,0.51977934,65739.0,65738.0,0.000827]
[1727588545731,0.52477934,65739.0,65738.0,0.000827]
[1727588546175,0.36793295,65739.0,65738.0,0.000827]
[1727588546416,0.52642582,65739.0,65738.0,0.000827]
[1727588546898,0.36793295,65739.0,65738.0,0.000827]
[1727588547352,0.49755978,65739.0,65738.0,0.000827]
[1727588548279,0.56562406,65739.0,65738.0,0.000827]
[1727588548765,0.43599723,65739.0,65738.0,0.000827]
[1727588552101,0.35469723,65739.0,65738.0,0.000827]
[1727588553458,0.35468517,65739.0,65738.0,0.000827]
[1727588558030,0.35468456,65739.0,65738.0,0.000827]
[1727588559596,0.43128456,65739.0,65738.0,0.000827]
[1727588559819,0.56723737,65739.0,65738.0,0.000827]
[1727588560555,0.49918576,65739.0,65738.0,0.000827]
[1727588561667,0.56724383,65739.0,65738.0,0.000827]
[1727588561889,0.49918576,65739.0,65738.0,0.000827]
[1727588562833,0.74866,65739.0,65738.0,0.000827]
[1727588563052,0.65790877,65739.0,65738.0,0.000827]
[1727588563276,0.77132812,65739.0,65738.0,0.000827]
[1727588563969,0.65790877,65739.0,65738.0,0.000827]
[1727588568481,0.75790877,65739.0,65738.0,0.000827]
[1727588570867,0.75760987,65739.0,65738.0,0.000827]
[1727588572456,0.7576548,65739.0,65738.0,0.000827]
[1727588573566,0.78150423,65739.0,65738.0,0.000827]
[1727588574223,0.91772186,65739.0,65738.0,0.000827]
[1727588575299,0.78150423,65739.0,65738.0,0.000827]
[1727588579500,0.89714595,65739.0,65738.0,0.000827]
[1727588581058,0.89712924,65739.0,65738.0,0.000827]
[1727588581738,0.87327981,65739.0,65738.0,0.000827]
[1727588581976,0.561727,65739.0,65738.0,0.000827]
[1727588584992,0.58557537,65739.0,65738.0,0.000827]
[1727588585250,0.5857086,65739.0,65738.0,0.000827]
[1727588585959,0.56186023,65739.0,65738.0,0.000827]
[1727588586200,0.71824829,65739.0,65738.0,0.000827]
[1727588590139,0.71814079,65739.0,65738.0,0.000827]
[1727588590897,0.80984079,65739.0,65738.0,0.000827]
[1727588591141,0.96330058,65739.0,65738.0,0.000827]
[1727588592721,1.03171008,65739.0,65738.0,0.000827]
[1727588593002,0.8336897,65739.0,65738.0,0.000827]
[1727588594178,0.80984079,65739.0,65738.0,0.000827]
[1727588596069,0.96330058,65739.0,65738.0,0.000827]
[1727588599469,1.04881818,65739.0,65738.0,0.000827]
[1727588599736,1.1283915,65739.0,65738.0,0.000827]
[1727588599991,1.20181853,65739.0,65738.0,4.752e-05]
[1727588601426,1.22567027,65739.0,65738.0,4.752e-05]
[1727588602678,1.20181853,65739.0,65738.0,4.752e-05]
[1727588603379,1.19923656,65739.0,65738.0,4.752e-05]
[1727588604336,1.20107612,65739.0,65738.0,4.752e-05]
[1727588606328,1.22492716,65739.0,65738.0,4.752e-05]
[1727588606821,1.20107612,65739.0,65738.0,4.752e-05]
[1727588607067,1.20107612,65739.0,65738.0,2.96e-06]
[1727588608055,1.11055852,65739.0,65738.0,2.96e-06]
[1727588608293,1.11255852,65739.0,65738.0,0.00100296]
[1727588608536,0.90329431,65739.0,65738.0,0.00200296]
[1727588609240,0.96146531,65739.0,65738.0,0.00200296]
[1727588609491,1.18172952,65739.0,65738.0,0.00200296]
[1727588610001,1.20558296,65739.0,65738.0,0.00013073]
[1727588610491,0.29266267,65721.0,65720.0,0.22690658]
[1727588610725,0.54012042,65721.0,65720.0,0.22690658]
[1727588610981,0.54012042,65721.0,65720.0,0.04303817]
[1727588610982,0.44999425,65721.0,65720.0,0.04303817]
[1727588611228,0.175167,65717.0,65716.0,0.0933]
[1727588611489,0.45000325,65717.0,65716.0,0.0933]
[1727588612226,0.15403495,65715.0,65714.0,0.0772]
[1727588612481,0.44782421,65715.0,65714.0,0.0772]
[1727588613498,0.33436653,65715.0,65714.0,0.0772]
[1727588614653,0.42509813,65715.0,65714.0,0.0772]
[1727588614892,0.00186295,65713.0,65712.0,0.0933]
[1727588615121,0.36072917,65713.0,65712.0,0.0933]
[1727588616334,0.29268067,65713.0,65712.0,0.0933]
[1727588616799,0.29368067,65713.0,65712.0,0.1023]
[1727588617042,0.29468067,65713.0,65712.0,0.1023]
[1727588617288,0.43986203,65713.0,65712.0,0.1023]
[1727588617777,0.34002801,65713.0,65712.0,0.1023]
[1727588618488,0.34002801,65713.0,65712.0,0.009]
[1727588618722,0.34002765,65713.0,65712.0,0.009]
[1727588619681,0.34002765,65713.0,65712.0,0.009827]
[1727588620206,0.36388372,65713.0,65712.0,0.009827]
[1727588620440,0.4954375,65713.0,65712.0,0.009827]
[1727588621416,0.45009052,65713.0,65712.0,0.009827]
[1727588622603,0.20289502,65713.0,65712.0,0.009827]
[1727588622831,0.31853674,65713.0,65712.0,0.180327]
[1727588623052,0.29468067,65713.0,65712.0,0.180327]
[1727588624916,0.29484833,65713.0,65712.0,0.180327]
[1727588631373,0.34017876,65713.0,65712.0,0.087027]
[1727588631601,0.45331664,65713.0,65712.0,0.009827]
[1727588633213,0.45332036,65713.0,65712.0,0.009827]
[1727588634643,0.40798621,65713.0,65712.0,0.009827]
[1727588635279,0.29484833,65713.0,65712.0,0.009827]
[1727588637439,0.36284956,65713.0,65712.0,0.009827]
[1727588638111,0.3628717,65713.0,65712.0,0.009827]
[1727588640343,0.29484833,65713.0,65712.0,0.009827]
[1727588641444,0.54137865,65713.0,65712.0,0.009827]
[1727588642343,0.66772802,65713.0,65712.0,0.009827]
[1727588643427,0.57698634,65713.0,65712.0,0.009827]
[1727588644303,0.69041344,65713.0,65712.0,0.009827]
[1727588645832,0.57698634,65713.0,65712.0,0.009827]
[1727588653398,0.71309886,65713.0,65712.0,0.009827]
[1727588654070,0.58674949,65713.0,65712.0,0.009827]
[1727588655924,0.58751884,65713.0,65712.0,0.009827]
[1727588656371,0.45108572,65713.0,65712.0,0.009827]
[1727588660770,0.45108255,65713.0,65712.0,0.009827]
[1727588671255,0.33527317,65713.0,65712.0,0.009827]
[1727588671478,0.45108255,65713.0,65712.0,0.009867]
[1727588672590,0.58098461,65713.0,65712.0,0.009867]
[1727588672810,0.45108255,65713.0,65712.0,0.009867]
[1727588675089,0.450922,65713.0,65712.0,0.009867]
[1727588680011,0.45098103,65713.0,65712.0,0.009867]
[1727588684873,0.45105696,65713.0,65712.0,0.009867]
[1727588686500,0.59664093,65713.0,65712.0,0.009867]
[1727588686718,0.48083155,65713.0,65712.0,0.009867]
[1727588686951,0.33524758,65713.0,65712.0,0.009867]
[1727588689643,0.33524762,65713.0,65712.0,0.009867]
[1727588691224,0.33524916,65713.0,65712.0,0.009867]
[1727588691897,0.45105854,65713.0,65712.0,0.009867]
[1727588699589,0.45063091,65713.0,65712.0,0.009867]
[1727588700382,0.60701897,65713.0,65712.0,0.009867]
[1727588702928,0.60698145,65713.0,65712.0,0.009867]
[1727588711269,0.60698145,65713.0,65712.0,0.085887]
[1727588712356,0.60677869,65713.0,65712.0,0.085887]
[1727588712827,0.45039063,65713.0,65712.0,0.085887]
[1727588717279,0.33458125,65713.0,65712.0,0.085887]
[1727588717550,0.44796962,65713.0,65712.0,0.085887]
[1727588717794,0.15940525,65713.0,65712.0,0.414466]
[1727588718027,0.25034169,65713.0,65712.0,0.414466]
[1727588718261,0.00386295,65713.0,65712.0,0.45692595]
[1727588719242,0.07204353,65713.0,65712.0,0.45692595]
[1727588721341,0.00386295,65713.0,65712.0,0.45692595]
[1727588722263,0.07204353,65713.0,65712.0,0.45692595]
[1727588724392,0.00386295,65713.0,65712.0,0.45692595]
[1727588728435,0.04928676,65713.0,65712.0,0.45692595]
[1727588728674,0.00386295,65713.0,65712.0,0.45692595]
[1727588729110,0.04928702,65713.0,65712.0,0.45692595]
[1727588729344,0.00386295,65713.0,65712.0,0.45692595]
[1727588731769,0.04928407,65713.0,65712.0,0.45692595]
[1727588732238,0.04928428,65713.0,65712.0,0.45692595]
[1727588736214,0.04927835,65713.0,65712.0,0.45692595]
[1727588739258,0.0474154,65713.0,65712.0,0.45692595]
[1727588739507,0.04927835,65713.0,65712.0,0.45692595]
[1727588740438,0.00386295,65713.0,65712.0,0.45692595]
[1727588748832,0.00386295,65713.0,65712.0,0.35852595]
[1727588757287,0.04928717,65713.0,65712.0,0.35852595]
[1727588759410,0.00386295,65713.0,65712.0,0.35852595]
[1727588761241,0.07204055,65713.0,65712.0,0.35852595]
[1727588762177,0.16050189,65713.0,65712.0,0.35852595]
[1727588763838,0.16056931,65713.0,65712.0,0.35852595]
[1727588765225,0.25156021,65713.0,65712.0,0.35852595]
[1727588765695,0.16056931,65713.0,65712.0,0.45502595]
[1727588766155,0.25156153,65713.0,65712.0,0.45502595]
[1727588767284,0.07210532,65713.0,65712.0,0.45502595]
[1727588768480,0.00386295,65713.0,65712.0,0.45502595]
[1727588768701,0.07210072,65713.0,65712.0,0.45502595]
[1727588771257,0.09510072,65713.0,65712.0,0.45502595]
[1727588773012,0.18375585,65713.0,65712.0,0.12834695]
[1727588773242,0.29748547,65713.0,65712.0,0.12834695]
[1727588773481,0.18375585,65713.0,65712.0,0.12834695]
[1727588773723,0.18375585,65713.0,65712.0,0.28052595]
[1727588774199,0.33593185,65713.0,65712.0,0.12834695]
[1727588774654,0.18375585,65713.0,65712.0,0.12834695]
[1727588775353,0.33593185,65713.0,65712.0,0.12834695]
[1727588775846,0.33593185,65713.0,65712.0,0.085887]
[1727588777887,0.33538535,65713.0,65712.0,0.085887]
[1727588783773,0.33538535,65713.0,65712.0,0.12827392]
[1727588783990,0.33538535,65713.0,65712.0,0.085887]
[1727588784244,0.33538535,65713.0,65712.0,0.12827392]
[1727588784473,0.18320935,65713.0,65712.0,0.085887]
[1727588784696,0.18320935,65713.0,65712.0,0.12827392]
[1727588785134,0.33538535,65713.0,65712.0,0.12827392]
[1727588785573,0.33538535,65713.0,65712.0,0.085887]
[1727588785797,0.33538535,65713.0,65712.0,0.12827392]
[1727588786023,0.33538535,65713.0,65712.0,0.085887]
[1727588786289,0.44158643,65713.0,65712.0,0.12827392]
[1727588786522,0.63208643,65713.0,65712.0,0.12827392]
[1727588786754,0.70978643,65713.0,65712.0,0.085887]
[1727588787204,0.70878643,65713.0,65712.0,0.076887]
[1727588787867,0.70778643,65713.0,65712.0,0.076887]
[1727588788136,0.70778643,65713.0,65712.0,0.078887]
[1727588789180,0.70778643,65713.0,65712.0,0.079887]
[1727588789641,0.70778643,65713.0,65712.0,0.078887]
[1727588790465,0.70778643,65713.0,65712.0,0.080887]
[1727588791169,0.84413683,65713.0,65712.0,0.080887]
[1727588792129,0.84333806,65713.0,65712.0,0.080887]
[1727588792592,0.85294636,65713.0,65712.0,0.080887]
[1727588793074,0.71659792,65713.0,65712.0,0.080887]
[1727588795035,0.74045605,65713.0,65712.0,0.080887]
[1727588796183,0.71659792,65713.0,65712.0,0.080887]
[1727588797072,0.71653406,65713.0,65712.0,0.080887]
[1727588798683,0.87792212,65713.0,65712.0,0.080887]
[1727588799371,1.01419398,65713.0,65712.0,0.080887]
[1727588799836,0.87792212,65713.0,65712.0,0.080887]
[1727588801336,1.01417532,65713.0,65712.0,0.080887]
[1727588801539,1.02268658,65713.0,65712.0,0.080887]
[1727588806462,0.73094765,65713.0,65712.0,0.080887]
[1727588806690,1.02237614,65713.0,65712.0,0.080887]
[1727588807882,1.02437614,65713.0,65712.0,0.080887]
[1727588808101,1.02237614,65713.0,65712.0,0.080887]
[1727588808564,1.02437614,65713.0,65712.0,0.080887]
[1727588809018,1.02237614,65713.0,65712.0,0.080887]
[1727588809765,1.02237614,65713.0,65712.0,0.00320882]
[1727588809766,1.03940388,65713.0,65712.0,0.00320882]
[1727588809978,1.1034385,65713.0,65712.0,0.00320882]
[1727588810228,0.88615422,65713.0,65712.0,0.00320882]
[1727588810475,0.89815422,65713.0,65712.0,0.00120882]
[1727588810695,0.92201644,65713.0,65712.0,0.00120882]
[1727588810922,0.90015422,65713.0,65712.0,0.00120882]
[1727588811381,0.90015422,65713.0,65711.0,0.003318]
[1727588811382,0.97764195,65712.0,65711.0,1e-06]
[1727588811601,0.17106295,65703.0,65702.0,0.000828]
[1727588811868,0.17106295,65703.0,65686.0,0.22700658]
[1727588811869,0.608859,65697.0,65686.0,0.0001]
[1727588812091,0.2275,65700.0,65687.0,0.22690658]
[1727588812092,0.26909695,65688.0,65687.0,0.22690658]
[1727588812338,0.26909695,65688.0,65686.0,0.0001]
[1727588812339,0.15409995,65687.0,65686.0,0.0001]
[1727588812570,0.52346631,65687.0,65686.0,0.0001]
[1727588813013,0.6595882,65687.0,65686.0,0.0001]
[1727588813255,0.52346631,65687.0,65686.0,0.0001]
[1727588813737,0.5753354,65687.0,65686.0,0.0001]
[1727588813967,0.72211617,65687.0,65686.0,0.0001]
[1727588814414,0.27796904,65687.0,65686.0,0.0001]
[1727588814641,0.00186295,65687.0,65686.0,0.0001]
[1727588814854,0.00586295,65687.0,65686.0,0.0001]
[1727588815431,0.00186295,65687.0,65686.0,0.03719335]
[1727588815678,0.28209995,65687.0,65686.0,0.0001]
[1727588815924,0.28209995,65687.0,65686.0,0.03719335]
[1727588815925,0.35686978,65687.0,65686.0,0.03719335]
[1727588816165,0.35686978,65687.0,65686.0,0.0001]
[1727588817193,0.50940569,65687.0,65686.0,0.0001]
[1727588817438,0.51940569,65687.0,65686.0,0.0001]
[1727588817679,0.65526548,65687.0,65686.0,0.000927]
[1727588817931,0.53102631,65687.0,65686.0,0.000927]
[1727588818174,0.02486295,65668.0,65667.0,0.078924]
[1727588818656,0.02486295,65668.0,65667.0,0.26805148]
[1727588820301,0.02486295,65668.0,65667.0,0.26819148]
[1727588820549,0.02586295,65668.0,65667.0,0.26819148]
[1727588821486,0.02686295,65668.0,65667.0,0.26819148]
[1727588823870,0.02686295,65668.0,65667.0,0.38400086]
[1727588824104,0.002,65668.0,65667.0,0.38400086]
[1727588825774,0.002,65668.0,65667.0,0.47650086]
[1727588826706,0.002,65668.0,65667.0,0.36069148]
[1727588828344,0.025,65668.0,65667.0,0.36069148]
[1727588828794,0.025,65668.0,65667.0,0.26819148]
[1727588829264,0.025,65668.0,65667.0,0.26805148]
[1727588829537,0.025,65668.0,65667.0,0.26887848]
[1727588835306,0.002,65668.0,65667.0,0.26887848]
[1727588835829,0.002,65668.0,65667.0,0.36137848]
[1727588840790,0.002,65668.0,65667.0,0.36337848]
[1727588841251,0.003656,65668.0,65667.0,0.36337848]
[1727588841480,0.002656,65668.0,65667.0,0.36337848]
[1727588842140,0.001656,65668.0,65667.0,0.36337848]
[1727588842567,0.002656,65668.0,65667.0,0.37537848]
[1727588842791,0.002656,65668.0,65667.0,0.48757605]
[1727588843019,0.002656,65668.0,65667.0,0.37537848]
[1727588843253,0.002656,65668.0,65667.0,0.49118786]
[1727588843724,0.003656,65668.0,65667.0,0.50418786]
[1727588844426,0.002656,65668.0,65667.0,0.49118786]
[1727588844693,0.002656,65668.0,65667.0,0.60338802]
[1727588844909,0.002656,65668.0,65667.0,0.61738802]
[1727588848506,0.002656,65668.0,65667.0,0.60338802]
[1727588848693,0.001656,65668.0,65667.0,0.59138802]
[1727588848954,0.003656,65668.0,65667.0,0.61638802]
[1727588849171,0.003656,65668.0,65667.0,0.50057864]
[1727588849401,0.003656,65668.0,65667.0,0.61638802]
[1727588850828,0.003656,65668.0,65667.0,0.77167596]
[1727588851071,0.003656,65668.0,65667.0,0.77667596]
[1727588852312,0.003656,65668.0,65667.0,0.78481301]
[1727588853266,0.003656,65668.0,65667.0,0.66900363]
[1727588853520,0.003656,65668.0,65667.0,0.78481301]
[1727588854628,0.003656,65668.0,65667.0,0.62138802]
[1727588857426,0.003656,65668.0,65667.0,0.61638802]
[1727588857652,0.003656,65668.0,65667.0,0.62138802]
[1727588858604,0.003656,65668.0,65667.0,0.61638802]
[1727588859501,0.003656,65668.0,65667.0,0.61438802]
[1727588859851,0.003656,65668.0,65667.0,0.49857864]
[1727588859967,0.003656,65668.0,65667.0,0.61438802]
[1727588860184,0.003656,65668.0,65667.0,0.49857864]
[1727588860431,0.003656,65668.0,65667.0,0.14159548]
[1727588860677,0.003656,65668.0,65667.0,0.06267148]
[1727588860917,0.003656,65668.0,65667.0,0.17848086]
[1727588862094,0.002656,65668.0,65667.0,0.16548086]
[1727588862331,0.001656,65668.0,65667.0,0.16548086]
[1727588862578,0.002656,65668.0,65667.0,0.16548086]
[1727588863505,0.002656,65668.0,65667.0,0.36699095]
[1727588864227,0.003656,65668.0,65667.0,0.32776386]
[1727588865650,0.003656,65668.0,65667.0,0.17548086]
[1727588869773,0.00272744,65668.0,65667.0,0.17548086]
[1727588871864,0.15500844,65668.0,65667.0,0.17548086]
[1727588872975,0.15687139,65668.0,65667.0,0.05967148]
[1727588873193,0.27487139,65668.0,65667.0,0.022827]
[1727588873673,0.32024288,65668.0,65667.0,0.022827]
[1727588873915,0.27487139,65668.0,65667.0,0.022827]
[1727588874177,0.34292863,65668.0,65667.0,0.022827]
[1727588874426,0.42614978,65668.0,65667.0,0.022827]
[1727588874663,0.44426622,65668.0,65667.0,0.022827]
[1727588874910,0.59558815,65668.0,65667.0,0.022827]
[1727588875440,0.83273075,65668.0,65667.0,0.012827]
[1727588875446,0.71937496,65668.0,65667.0,0.012827]
[1727588875695,0.71937496,65668.0,65667.0,0.018827]
[1727588875696,0.72037496,65668.0,65667.0,0.018827]
[1727588876206,0.60456558,65668.0,65667.0,0.018827]
[1727588876450,0.62844109,65668.0,65667.0,0.018827]
[1727588876688,0.67753671,65668.0,65667.0,0.018827]
[1727588877610,0.78975421,65668.0,65667.0,0.006827]
[1727588877871,0.74165859,65668.0,65667.0,0.013827]
[1727588878121,0.74065859,65668.0,65667.0,0.007827]
[1727588878352,0.73965859,65668.0,65667.0,0.000827]
[1727588878576,0.62844109,65668.0,65667.0,0.000827]
[1727588879333,0.71898885,65668.0,65667.0,0.000827]
[1727588880027,0.54654171,65668.0,65667.0,0.000827]
[1727588881158,0.4786469,65668.0,65667.0,0.000827]
[1727588881384,0.45477139,65668.0,65667.0,0.000827]
[1727588884724,0.37587139,65668.0,65667.0,0.000827]
[1727588885424,0.28087139,65668.0,65667.0,0.000827]
[1727588887795,0.02859039,65668.0,65667.0,0.000827]
[1727588888013,0.28087139,65668.0,65667.0,0.03783046]
[1727588888239,0.12859039,65668.0,65667.0,0.000827]
[1727588888454,0.12859039,65668.0,65667.0,0.03783046]
[1727588888682,0.12859039,65668.0,65667.0,0.000827]
[1727588888683,0.12759039,65668.0,65667.0,0.000827]
[1727588888895,0.27987139,65668.0,65667.0,0.03783046]
[1727588889105,0.27787139,65668.0,65667.0,0.000827]
[1727588889344,0.27787139,65668.0,65667.0,0.03783046]
[1727588889567,0.27987139,65668.0,65667.0,0.000827]
[1727588889797,0.28087139,65668.0,65667.0,0.000827]
[1727588890052,0.17887139,65668.0,65667.0,0.0378697]
[1727588890292,0.12659039,65668.0,65667.0,0.000827]
[1727588890528,0.12659039,65668.0,65667.0,0.0418697]
[1727588890794,0.12659039,65668.0,65667.0,0.004827]
[1727588891285,0.12659039,65668.0,65667.0,0.22618177]
[1727588891286,0.00172744,65668.0,65667.0,0.22618177]
[1727588891521,0.00172744,65668.0,65667.0,0.28333895]
[1727588891759,0.00172744,65668.0,65667.0,0.39538165]
[1727588891993,0.00072744,65668.0,65667.0,0.39233634]
[1727588892421,0.00072744,65668.0,65667.0,0.3683527]
[1727588894325,0.00072744,65668.0,65667.0,0.54495317]
[1727588905638,0.00072744,65668.0,65667.0,0.53995317]
[1727588906624,0.00072744,65668.0,65667.0,0.54595317]
[1727588906859,0.00272744,65668.0,65667.0,0.55595317]
[1727588907090,0.00272744,65668.0,65667.0,0.67266359]
[1727588908710,0.00272744,65668.0,65667.0,0.55595317]
[1727588911699,0.00272744,65668.0,65667.0,0.55795317]
[1727588916257,0.00272744,65668.0,65667.0,0.49722313]
[1727588919947,0.00272744,65668.0,65667.0,0.49522313]
[1727588930816,0.00272744,65668.0,65667.0,0.40102313]
[1727588931039,0.00272744,65668.0,65667.0,0.32602313]
[1727588934908,0.00272744,65668.0,65667.0,0.41902313]
[1727588937425,0.00272744,65668.0,65667.0,0.53084054]
[1727588938516,0.00272744,65668.0,65667.0,0.41902313]
[1727588942120,0.00272744,65668.0,65667.0,0.32602313]
[1727588954906,0.00272744,65668.0,65667.0,0.50222313]
[1727588966338,0.00263727,65668.0,65667.0,0.50222313]
[1727588967539,0.00263727,65668.0,65667.0,0.3863527]
[1727588967765,0.00263727,65668.0,65667.0,0.49097728]
[1727588968971,0.00263727,65668.0,65667.0,0.39567728]
[1727588969448,0.00263727,65668.0,65667.0,0.2910527]
[1727588985689,0.00263727,65668.0,65667.0,0.3903527]
[1727588989675,0.00163727,65668.0,65667.0,0.3823527]
[1727588989912,0.00163727,65668.0,65667.0,0.3913527]
[1727588990599,0.00063727,65668.0,65667.0,0.3813527]
[1727588990828,0.00063727,65668.0,65667.0,0.50273952]
[1727588991048,0.00063727,65668.0,65667.0,0.51673952]
[1727588991952,0.00063727,65668.0,65667.0,0.50273952]
[1727588992191,0.00063727,65668.0,65667.0,0.51673952]
[1727588994453,0.00063727,65668.0,65667.0,0.50773952]
[1727588995177,0.00063727,65668.0,65667.0,0.52173952]
[1727588995419,0.00063727,65668.0,65667.0,0.2181527]
[1727589006144,0.00063727,65668.0,65667.0,0.22119788]
[1727589008928,0.00063727,65668.0,65667.0,0.31639788]
[1727589010262,0.00063727,65668.0,65667.0,0.22119788]
[1727589014011,0.00063727,65668.0,65667.0,0.2181527]
[1727589016608,0.00063727,65668.0,65667.0,0.3461527]
[1727589020893,0.00063727,65668.0,65667.0,0.4223527]
[1727589022777,0.00063727,65668.0,65667.0,0.54731011]
[1727589028244,0.00063727,65668.0,65667.0,0.4223527]
[1727589029195,0.00063727,65668.0,65667.0,0.53822313]
[1727589030361,0.00063727,65668.0,65667.0,0.63672313]
[1727589031692,0.00063727,65668.0,65667.0,0.64749618]
[1727589045153,0.00063727,65668.0,65667.0,0.35692575]
[1727589045391,0.00063727,65668.0,65667.0,0.59340276]
[1727589046703,0.01793727,65668.0,65667.0,0.59340276]